fUSD/lending_fUSD_20251210
["ID","MTS","AMOUNT","RATE_DAILY","PERIOD"]
[398042317,1765332646863,-500.0,0.00016218,2]
[398042318,1765332646874,-500.0,0.00016218,2]
[398042319,1765332646883,-578.64,0.00016218,2]
[398042320,1765332646893,-500.0,0.00016218,2]
[398042321,1765332646903,-502.18818782,0.00016218,2]
[398042322,1765332646912,-500.0,0.00016218,2]
[398042323,1765332646922,-507.05552921,0.00016218,2]
[398042324,1765332646931,-503.05763502,0.00016218,2]
[398042325,1765332646941,-500.0,0.00016218,2]
[398042326,1765332646950,-500.0,0.00016218,2]
[398042327,1765332646959,-500.0,0.00016218,2]
[398042328,1765332646972,-500.0,0.00016218,2]
[398042329,1765332646982,-500.0,0.00016218,2]
[398042330,1765332646991,-500.0,0.00016218,2]
[398042331,1765332647001,-535.24,0.00016218,2]
[398042332,1765332647011,-537.94759885,0.00016218,2]
[398042333,1765332647021,-569.08,0.00016218,2]
[398042334,1765332647031,-569.186459,0.00016218,2]
[398042335,1765332647042,-500.0,0.00016218,2]
[398042336,1765332647052,-532.71926238,0.00016218,2]
[398042337,1765332647061,-500.0,0.00016218,2]
[398042338,1765332647071,-500.0,0.00016218,2]
[398042339,1765332647081,-157.327421,0.00016218,2]
[398042340,1765332647090,-397.10519257,0.00016218,2]
[398042341,1765332647100,-500.0,0.00016218,2]
[398042342,1765332647110,-500.0,0.00016218,2]
[398042343,1765332647119,-500.0,0.00016218,2]
[398042344,1765332647129,-1194.976218,0.00016218,2]
[398042345,1765332647138,-500.0,0.00016218,2]
[398042346,1765332647147,-479.12729793,0.00016218,2]
[398042347,1765332647157,-500.0,0.00016218,2]
[398042348,1765332647167,-341.64913112,0.00016218,2]
[398042349,1765332647177,-500.0,0.00016218,2]
[398042350,1765332647187,-1377.319992,0.00016218,2]
[398042351,1765332647197,-500.0,0.00016218,2]
[398042352,1765332647208,-1051.27,0.00016218,2]
[398042353,1765332647218,-500.0,0.00016218,2]
[398042354,1765332647228,-159.497034,0.00016218,2]
[398042355,1765332647238,-610.79,0.00016218,2]
[398042356,1765332647249,-885.737109,0.00016218,2]
[398042357,1765332647259,-500.0,0.00016218,2]
[398042358,1765332647268,-500.0,0.00016218,2]
[398042359,1765332647278,-500.0,0.00016218,2]
[398042360,1765332647287,-500.0,0.00016218,2]
[398042361,1765332647297,-615.43,0.00016218,2]
[398042362,1765332647307,-500.0,0.00016218,2]
[398042363,1765332647316,-349.82014277,0.00016218,2]
[398042364,1765332647325,-505.12563242,0.00016218,2]
[398042365,1765332647335,-500.0,0.00016218,2]
[398042366,1765332647345,-500.0,0.00016218,2]
[398042367,1765332647354,-500.0,0.00016218,2]
[398042368,1765332647363,-500.0,0.00016218,2]
[398042369,1765332647372,-568.03,0.00016218,2]
[398042370,1765332647382,-500.0,0.00016218,2]
[398042371,1765332647391,-562.18,0.00016218,2]
[398042372,1765332647401,-500.0,0.00016218,2]
[398042373,1765332647410,-500.0,0.00016218,2]
[398042374,1765332647420,-500.0,0.00016218,2]
[398042375,1765332647431,-500.0,0.00016218,2]
[398042376,1765332647440,-500.0,0.00016218,2]
[398042377,1765332647450,-708.68,0.00016218,2]
[398042378,1765332647460,-500.0,0.00016218,2]
[398042379,1765332647470,-500.0,0.00016218,2]
[398042380,1765332647479,-583.16872263,0.00016218,2]
[398042381,1765332647489,-500.0,0.00016218,2]
[398042382,1765332647500,-503.10001801,0.00016218,2]
[398042383,1765332647509,-712.63,0.00016218,2]
[398042384,1765332647519,-500.0,0.00016218,2]
[398042385,1765332647529,-500.0,0.00016218,2]
[398042386,1765332647539,-500.0,0.00016218,2]
[398042387,1765332647549,-500.0,0.00016218,2]
[398042388,1765332647559,-500.0,0.00016218,2]
[398042389,1765332647568,-500.0,0.00016218,2]
[398042390,1765332647578,-502.029326,0.00016218,2]
[398042391,1765332647588,-502.79171848,0.00016218,2]
[398042392,1765332647598,-500.0,0.00016218,2]
[398042393,1765332647608,-500.0,0.00016218,2]
[398042394,1765332647617,-500.0,0.00016218,2]
[398042395,1765332647627,-500.0,0.00016218,2]
[398042396,1765332647639,-383.53,0.00016218,2]
[398042397,1765332647649,-500.0,0.00016218,2]
[398042398,1765332647659,-500.0,0.00016218,2]
[398042399,1765332647668,-500.0,0.00016218,2]
[398042400,1765332647678,-500.0,0.00016218,2]
[398042401,1765332647687,-500.0,0.00016218,2]
[398042402,1765332647697,-500.0,0.00016218,2]
[398042403,1765332647707,-500.0,0.00016218,2]
[398042404,1765332647717,-500.0,0.00016218,2]
[398042405,1765332647727,-500.0,0.00016218,2]
[398042406,1765332647737,-500.0,0.00016218,2]
[398042407,1765332647748,-500.0,0.00016218,2]
[398042408,1765332647757,-500.0,0.00016218,2]
[398042409,1765332647767,-560.57,0.00016218,2]
[398042410,1765332647777,-500.0,0.00016218,2]
[398042411,1765332647786,-500.0,0.00016218,2]
[398042412,1765332647795,-526.29,0.00016218,2]
[398042413,1765332647804,-500.0,0.00016218,2]
[398042414,1765332647814,-500.0,0.00016218,2]
[398042415,1765332647823,-502.14208924,0.00016218,2]
[398042416,1765332647833,-724.02,0.00016218,2]
[398042417,1765332647842,-567.64281709,0.00016218,2]
[398042418,1765332647852,-500.0,0.00016218,2]
[398042419,1765332647861,-500.0,0.00016218,2]
[398042420,1765332647870,-500.0,0.00016218,2]
[398042421,1765332647880,-500.0,0.00016218,2]
[398042422,1765332647889,-500.0,0.00016218,2]
[398042423,1765332647898,-500.0,0.00016218,2]
[398042424,1765332647907,-509.92873037,0.00016218,2]
[398042425,1765332647917,-520.76,0.00016218,2]
[398042426,1765332647926,-500.0,0.00016218,2]
[398042427,1765332647936,-500.0,0.00016218,2]
[398042428,1765332647944,-500.0,0.00016218,2]
[398042429,1765332647954,-500.0,0.00016218,2]
[398042430,1765332647963,-500.0,0.00016218,2]
[398042431,1765332647973,-500.0,0.00016218,2]
[398042432,1765332647982,-750.65,0.00016218,2]
[398042433,1765332647992,-792.98,0.00016218,2]
[398042434,1765332648001,-812.36,0.00016218,2]
[398042435,1765332648011,-500.0,0.00016218,2]
[398042436,1765332648021,-500.0,0.00016218,2]
[398042437,1765332648030,-500.0,0.00016218,2]
[398042438,1765332648040,-500.0,0.00016218,2]
[398042439,1765332648049,-500.0,0.00016218,2]
[398042440,1765332648058,-500.0,0.00016218,2]
[398042441,1765332648068,-1301.02,0.00016218,2]
[398042442,1765332648077,-500.0,0.00016218,2]
[398042443,1765332648086,-530.03530506,0.00016218,2]
[398042444,1765332648095,-500.0,0.00016218,2]
[398042445,1765332648104,-568.2,0.00016218,2]
[398042446,1765332648113,-571.26,0.00016218,2]
[398042447,1765332648123,-500.0,0.00016218,2]
[398042448,1765332648132,-427.08659514,0.00016218,2]
[398042449,1765332648141,-1249.1,0.00016218,2]
[398042450,1765332648151,-508.47422146,0.00016218,2]
[398042451,1765332648160,-500.0,0.00016218,2]
[398042452,1765332648169,-1623.44,0.00016218,2]
[398042453,1765332648179,-500.0,0.00016218,2]
[398042454,1765332648189,-500.0,0.00016218,2]
[398042455,1765332648198,-501.44228264,0.00016218,2]
[398042456,1765332648208,-500.94615021,0.00016218,2]
[398042457,1765332648218,-500.0,0.00016218,2]
[398042458,1765332648228,-924.87,0.00016218,2]
[398042459,1765332648237,-500.0,0.00016218,2]
[398042460,1765332648247,-500.0,0.00016218,2]
[398042461,1765332648256,-500.0,0.00016218,2]
[398042462,1765332648266,-509.33025174,0.00016218,2]
[398042463,1765332648275,-1575.5,0.00016218,2]
[398042464,1765332648284,-500.0,0.00016218,2]
[398042465,1765332648294,-500.0,0.00016218,2]
[398042466,1765332648303,-522.82,0.00016218,2]
[398042467,1765332648313,-500.0,0.00016218,2]
[398042468,1765332648322,-500.0,0.00016218,2]
[398042469,1765332648333,-500.0,0.00016218,2]
[398042470,1765332648343,-536.44,0.00016218,2]
[398042471,1765332648353,-500.0,0.00016218,2]
[398042472,1765332648363,-978.0,0.00016218,2]
[398042473,1765332648373,-575.89,0.00016218,2]
[398042474,1765332648383,-500.0,0.00016218,2]
[398042475,1765332648392,-560.22,0.00016218,2]
[398042476,1765332648402,-3950.75,0.00016218,2]
[398042477,1765332648411,-500.0,0.00016218,2]
[398042478,1765332648420,-500.0,0.00016218,2]
[398042479,1765332648430,-721.42,0.00016218,2]
[398042480,1765332648439,-508.17686608,0.00016218,2]
[398042481,1765332648449,-500.0,0.00016218,2]
[398042482,1765332648458,-504.47965236,0.00016218,2]
[398042483,1765332648472,-500.0,0.00016218,2]
[398042484,1765332648482,-500.0,0.00016218,2]
[398042485,1765332648491,-500.0,0.00016218,2]
[398042486,1765332648500,-500.0,0.00016218,2]
[398042487,1765332648510,-502.85,0.00016218,2]
[398042488,1765332648519,-788.57,0.00016218,2]
[398042489,1765332648528,-1175.37,0.00016218,2]
[398042490,1765332648537,-626.26,0.00016218,2]
[398042491,1765332648547,-2970.3,0.00016218,2]
[398042492,1765332648556,-1076.81,0.00016218,2]
[398042493,1765332648565,-500.0,0.00016218,2]
[398042494,1765332648575,-513.05,0.00016218,2]
[398042495,1765332648584,-977.84,0.00016218,2]
[398042496,1765332648593,-500.0,0.00016218,2]
[398042497,1765332648602,-500.0,0.00016218,2]
[398042498,1765332648611,-500.73011407,0.00016218,2]
[398042499,1765332648621,-500.0,0.00016218,2]
[398042500,1765332648631,-500.0,0.00016218,2]
[398042501,1765332648641,-500.0,0.00016218,2]
[398042502,1765332648650,-500.0,0.00016218,2]
[398042503,1765332648659,-507.48186652,0.00016218,2]
[398042504,1765332648669,-728.96,0.00016218,2]
[398042505,1765332648678,-500.0,0.00016218,2]
[398042506,1765332648688,-361.08894143,0.00016218,2]
[398042507,1765332648698,-500.0,0.00016218,2]
[398042508,1765332648709,-502.95204102,0.00016218,2]
[398042509,1765332648718,-500.0,0.00016218,2]
[398042510,1765332648727,-500.0,0.00016218,2]
[398042511,1765332648737,-500.0,0.00016218,2]
[398042512,1765332648746,-973.15,0.00016218,2]
[398042513,1765332648755,-500.0,0.00016218,2]
[398042514,1765332648764,-500.0,0.00016218,2]
[398042515,1765332648774,-501.07909718,0.00016218,2]
[398042516,1765332648783,-567.05,0.00016218,2]
[398042517,1765332648792,-240.37476443,0.00016218,2]
[398042518,1765332648802,-500.0,0.00016218,2]
[398042519,1765332648811,-500.0,0.00016218,2]
[398042520,1765332648820,-500.0,0.00016218,2]
[398042521,1765332648829,-1056.53,0.00016218,2]
[398042522,1765332648838,-500.0,0.00016218,2]
[398042523,1765332648847,-705.51,0.00016218,2]
[398042524,1765332648860,-539.18,0.00016218,2]
[398042525,1765332648869,-500.0,0.00016218,2]
[398042526,1765332648879,-500.0,0.00016218,2]
[398042527,1765332648888,-713.96,0.00016218,2]
[398042528,1765332648897,-500.0,0.00016218,2]
[398042529,1765332648906,-751.93,0.00016218,2]
[398042530,1765332648916,-451.32607335,0.00016218,2]
[398042531,1765332648926,-541.27,0.00016218,2]
[398042532,1765332648936,-500.0,0.00016218,2]
[398042533,1765332648948,-803.32,0.00016218,2]
[398042534,1765332648958,-500.0,0.00016218,2]
[398042535,1765332648967,-500.0,0.00016218,2]
[398042536,1765332648976,-500.0,0.00016218,2]
[398042537,1765332648987,-500.0,0.00016218,2]
[398042538,1765332648996,-500.0,0.00016218,2]
[398042539,1765332649006,-500.0,0.00016218,2]
[398042540,1765332649015,-500.0,0.00016218,2]
[398042541,1765332649025,-990.09,0.00016218,2]
[398042542,1765332649035,-502.06232143,0.00016218,2]
[398042543,1765332649044,-500.0,0.00016218,2]
[398042544,1765332649053,-500.0,0.00016218,2]
[398042545,1765332649063,-500.0,0.00016218,2]
[398042546,1765332649072,-500.0,0.00016218,2]
[398042547,1765332649081,-502.72767698,0.00016218,2]
[398042548,1765332649090,-500.0,0.00016218,2]
[398042549,1765332649099,-500.0,0.00016218,2]
[398042550,1765332649109,-509.36,0.00016218,2]
[398042551,1765332649118,-500.0,0.00016218,2]
[398042552,1765332649127,-500.0,0.00016218,2]
[398042553,1765332649138,-500.0,0.00016218,2]
[398042554,1765332649147,-500.0,0.00016218,2]
[398042555,1765332649157,-601.17,0.00016218,2]
[398042556,1765332649167,-641.65,0.00016218,2]
[398042557,1765332649176,-500.0,0.00016218,2]
[398042558,1765332649186,-857.28,0.00016218,2]
[398042559,1765332649195,-889.68,0.00016218,2]
[398042560,1765332649204,-500.0,0.00016218,2]
[398042561,1765332649214,-2429.37,0.00016218,2]
[398042562,1765332649223,-521.27,0.00016218,2]
[398042563,1765332649232,-501.16362246,0.00016218,2]
[398042564,1765332649243,-542.18604212,0.00016218,2]
[398042565,1765332649258,-500.0,0.00016218,2]
[398042566,1765332649267,-500.0,0.00016218,2]
[398042567,1765332649276,-500.0,0.00016218,2]
[398042568,1765332649286,-500.0,0.00016218,2]
[398042569,1765332649295,-500.0,0.00016218,2]
[398042570,1765332649304,-500.0,0.00016218,2]
[398042571,1765332649313,-500.0,0.00016218,2]
[398042572,1765332649323,-460.0,0.00016218,2]
[398042573,1765332649332,-820.41,0.00016218,2]
[398042574,1765332649342,-500.0,0.00016218,2]
[398042575,1765332649351,-500.0,0.00016218,2]
[398042576,1765332649360,-1835.51,0.00016218,2]
[398042577,1765332649370,-500.0,0.00016218,2]
[398042578,1765332649379,-500.0,0.00016218,2]
[398042579,1765332649389,-500.0,0.00016218,2]
[398042580,1765332649398,-500.19469371,0.00016218,2]
[398042581,1765332649407,-500.0,0.00016218,2]
[398042582,1765332649416,-742.95,0.00016218,2]
[398042583,1765332649426,-500.0,0.00016218,2]
[398042584,1765332649435,-500.0,0.00016218,2]
[398042585,1765332649446,-677.04,0.00016218,2]
[398042586,1765332649455,-500.0,0.00016218,2]
[398042587,1765332649465,-854.59,0.00016218,2]
[398042588,1765332649474,-549.04,0.00016218,2]
[398042589,1765332649483,-504.73,0.00016218,2]
[398042590,1765332649492,-500.0,0.00016218,2]
[398042591,1765332649501,-500.0,0.00016218,2]
[398042592,1765332649510,-500.0,0.00016218,2]
[398042593,1765332649521,-503.99485218,0.00016218,2]
[398042594,1765332649532,-633.11,0.00016218,2]
[398042595,1765332649543,-500.0,0.00016218,2]
[398042596,1765332649552,-300.0,0.00016218,2]
[398042597,1765332649561,-500.0,0.00016218,2]
[398042598,1765332649570,-548.87,0.00016218,2]
[398042599,1765332649580,-500.0,0.00016218,2]
[398042600,1765332649589,-500.0,0.00016218,2]
[398042601,1765332649598,-500.0,0.00016218,2]
[398042602,1765332649607,-500.0,0.00016218,2]
[398042603,1765332649616,-500.0,0.00016218,2]
[398042604,1765332649625,-500.0,0.00016218,2]
[398042605,1765332649638,-500.0,0.00016218,2]
[398042606,1765332649647,-500.0,0.00016218,2]
[398042607,1765332649656,-501.64558943,0.00016218,2]
[398042608,1765332649666,-1270.74,0.00016218,2]
[398042609,1765332649677,-500.0,0.00016218,2]
[398042610,1765332649687,-504.00026719,0.00016218,2]
[398042611,1765332649697,-500.0,0.00016218,2]
[398042612,1765332649708,-500.0,0.00016218,2]
[398042613,1765332649921,-500.0,0.00016218,2]
[398042614,1765332649931,-1051.28547756,0.00016218,2]
[398042615,1765332649979,-35.64452244,0.00016218,2]
[398042616,1765332649989,-500.0,0.00016218,2]
[398042617,1765332649999,-500.0,0.00016218,2]
[398042618,1765332650008,-65.75715756,0.00016218,2]
[398042619,1765332650026,-296.59949766,0.00016218,2]
[398042620,1765332650039,-137.64334478,0.00016218,2]
[398042621,1765332650050,-556.23265914,0.00016218,2]
[398042622,1765332650060,-852.61,0.00016218,2]
[398042623,1765332650069,-926.22,0.00016218,2]
[398042624,1765332650080,-505.35771535,0.00016218,2]
[398042625,1765332650091,-500.0,0.00016218,2]
[398042626,1765332650100,-387.07628073,0.00016218,2]
[398042627,1765332650114,-112.92371927,0.00016218,2]
[398042628,1765332650125,-148.31726073,0.00016218,2]
[398042629,1765332650774,-371.95282755,0.00015993,2]
[398042630,1765332650784,-644.20273927,0.00016218,2]
[398042631,1765332650794,-500.0,0.00016218,2]
[398042632,1765332650803,-345.9414391,0.00016218,2]
[398042633,1765332650885,-406.0085609,0.00016218,2]
[398042634,1765332650895,-500.0,0.00016218,2]
[398042635,1765332650905,-500.0,0.00016218,2]
[398042636,1765332650915,-504.91536824,0.00016218,2]
[398042637,1765332650925,-500.0,0.00016218,2]
[398042638,1765332650936,-500.0,0.00016218,2]
[398042639,1765332650946,-643.72,0.00016218,2]
[398042640,1765332650956,-500.0,0.00016218,2]
[398042641,1765332650967,-500.0,0.00016218,2]
[398042642,1765332650977,-500.0,0.00016218,2]
[398042643,1765332650988,-501.50049467,0.00016218,2]
[398042644,1765332650997,-500.0,0.00016218,2]
[398042645,1765332651006,-500.0,0.00016218,2]
[398042646,1765332651016,-5209.2,0.00016218,2]
[398042647,1765332651026,-506.1261745,0.00016218,2]
[398042648,1765332651035,-1826.37,0.00016218,2]
[398042649,1765332651045,-500.0,0.00016218,2]
[398042650,1765332651054,-500.0,0.00016218,2]
[398042651,1765332651064,-500.0,0.00016218,2]
[398042652,1765332651074,-500.0,0.00016218,2]
[398042653,1765332651083,-681.79,0.00016218,2]
[398042654,1765332651093,-183.72252399,0.00016218,2]
[398042655,1765332651109,-316.27747601,0.00016218,2]
[398042656,1765332651118,-500.0,0.00016218,2]
[398042657,1765332651128,-500.0,0.00016218,2]
[398042658,1765332651138,-500.87549384,0.00016218,2]
[398042659,1765332651148,-134.01953533,0.00016218,2]
[398042663,1765333246805,477.0,0.00025,120]
[398042664,1765333534222,237.64159587,0.00025,120]
[398042667,1765333687787,1891.20357416,7.945e-05,2]
[398042668,1765333687816,187.47659884,7.945e-05,2]
[398042669,1765333707032,323.32067862,0.000246,120]
[398042672,1765333831484,-166.66,0.00014388,2]
[398042674,1765333831494,-201.34,0.00014572,2]
[398042676,1765333831505,-322.59321388,0.00014572,2]
[398042681,1765333831547,-676.06678612,0.00014572,2]
[398042682,1765333831556,-54.95009753,0.00014572,2]
[398042683,1765333831599,-245.04990247,0.00014572,2]
[398042684,1765333831609,-300.0,0.00014572,2]
[398042685,1765333831618,-108.65982479,0.00014572,2]
[398042686,1765333831628,-297.05507805,0.00014572,2]
[398042687,1765333831639,-390.82515427,0.00014572,2]
[398042688,1765333831655,-309.267682,0.00014572,2]
[398042689,1765333831666,-94.19226089,0.00014572,2]
[398042690,1765333831675,-150.0,0.00014573,2]
[398042691,1765333831684,-150.0,0.00014573,2]
[398042692,1765333831694,-150.0,0.00014573,2]
[398042693,1765333831703,-150.0,0.00014573,2]
[398042695,1765333831711,-150.0,0.00014573,2]
[398042697,1765333831721,-150.0,0.00014573,2]
[398042698,1765333831730,-150.0,0.00014573,2]
[398042700,1765333831739,-150.30840032,0.00014573,2]
[398042702,1765333831748,-150.4783543,0.00014573,2]
[398042704,1765333831757,-150.0,0.00014573,2]
[398042706,1765333831767,-150.41457453,0.00014573,2]
[398042708,1765333831775,-150.0,0.00014573,2]
[398042710,1765333831784,-150.0,0.00014573,2]
[398042712,1765333831793,-150.0,0.00014573,2]
[398042715,1765333831802,-999.0,0.00014609,3]
[398042718,1765333831811,-166.66,0.00014691,2]
[398042721,1765333831820,-150.0,0.00014735,2]
[398042723,1765333831829,-150.0,0.00014804,2]
[398042725,1765333831838,-150.0,0.00014804,2]
[398042727,1765333831847,-150.0,0.00014842,2]
[398042728,1765333831856,-150.0,0.00014896,2]
[398042729,1765333831865,-200.0,0.00014957,2]
[398042730,1765333831874,-150.0,0.00014977,2]
[398042731,1765333831883,-150.0,0.00014977,2]
[398042732,1765333831892,-150.0,0.00014977,2]
[398042733,1765333831901,-166.66,0.00014994,2]
[398042734,1765333831910,-150.0,0.00015035,2]
[398042735,1765333831919,-150.0,0.00015035,2]
[398042736,1765333831929,-150.0,0.00015058,2]
[398042737,1765333831938,-150.0,0.00015112,2]
[398042738,1765333831948,-150.0,0.0001522,2]
[398042739,1765333831957,-569.0,0.00015233,2]
[398042740,1765333831971,-150.0,0.00015267,2]
[398042741,1765333831981,-150.0,0.00015267,2]
[398042742,1765333831994,-166.66,0.00015297,2]
[398042743,1765333832003,-500.0,0.00015367,2]
[398042744,1765333832013,-150.0,0.00015382,2]
[398042745,1765333832022,-150.0,0.00015382,2]
[398042746,1765333832031,-150.0,0.00015382,2]
[398042747,1765333832040,-150.0,0.00015382,2]
[398042748,1765333832049,-150.0,0.00015382,2]
[398042749,1765333832059,-150.0,0.00015382,2]
[398042750,1765333832068,-480.70745097,0.00015452,2]
[398042751,1765333832077,-202.65042615,0.00015471,2]
[398042752,1765333832086,-202.65042615,0.00015471,2]
[398042753,1765333832095,-300.0,0.00015471,2]
[398042754,1765333832105,-202.65042615,0.00015472,2]
[398042755,1765333832114,-19516.21,0.00015472,2]
[398042756,1765333832124,-150.0,0.00015498,2]
[398042757,1765333832134,-150.0,0.00015498,2]
[398042758,1765333832143,-262.11744965,0.00015544,2]
[398042759,1765333832153,-150.0,0.00015544,2]
[398042760,1765333832162,-150.0,0.00015544,2]
[398042761,1765333832171,-150.0,0.00015544,2]
[398042762,1765333832180,-206.63417341,0.00015544,2]
[398042763,1765333832189,-150.0,0.00015544,2]
[398042764,1765333832199,-166.66,0.000156,2]
[398042765,1765333832208,-1000.0,0.0001563,2]
[398042766,1765333832218,-150.0,0.00015652,2]
[398042767,1765333832227,-152.54,0.00015678,2]
[398042768,1765333832236,-169.6143275,0.00015681,2]
[398042769,1765333832245,-201.81105965,0.00015681,2]
[398042770,1765333832254,-150.0,0.00015706,2]
[398042771,1765333832264,-150.0,0.00015729,2]
[398042772,1765333832273,-150.0,0.00015729,2]
[398042773,1765333832282,-1000.0,0.00015741,2]
[398042774,1765333832292,-887.684,0.00015742,2]
[398042775,1765333832301,-254.17,0.00015742,3]
[398042776,1765333832310,-1000.0,0.00015742,2]
[398042777,1765333832319,-16070.46,0.00015742,2]
[398042778,1765333832329,-150.0,0.00015787,2]
[398042779,1765333832338,-150.0,0.00015787,2]
[398042780,1765333832347,-150.0,0.00015787,2]
[398042781,1765333832356,-150.0,0.00015868,2]
[398042782,1765333832365,-157.90254619,0.00015895,2]
[398042783,1765333832374,-18223.47883902,0.00015898,2]
[398042784,1765333832386,-12880.74298217,0.00015898,2]
[398042801,1765333837643,-542.46609112,0.00015898,2]
[398042870,1765333839547,-258.39013124,0.00015898,2]
[398042871,1765333839658,-77462.19745645,0.00015898,2]
[398042872,1765333839668,-745.5575,0.00015899,2]
[398042873,1765333839678,-1000.0,0.00015899,2]
[398042874,1765333839688,-6042.33824491,0.00015899,2]
[398042875,1765333839698,-166.66,0.00015903,2]
[398042876,1765333839708,-150.0,0.00015922,2]
[398042877,1765333839718,-420.0,0.00015955,2]
[398042878,1765333839727,-304.0,0.00015955,2]
[398042879,1765333839737,-150.0,0.0001596,2]
[398042880,1765333839746,-150.0,0.0001596,2]
[398042881,1765333839758,-533.88981491,0.00015989,2]
[398042882,1765333839768,-153.05897419,0.00015989,2]
[398042883,1765333839778,-248.68508165,0.00015989,2]
[398042884,1765333839787,-500.0,0.00015997,2]
[398042885,1765333839797,-500.0,0.00015997,2]
[398042886,1765333839806,-608.59753258,0.00015997,2]
[398042887,1765333839816,-256.70246244,0.00015997,2]
[398042888,1765333839825,-500.0,0.00015997,2]
[398042889,1765333839834,-500.0,0.00015997,2]
[398042890,1765333839844,-500.0,0.00015997,2]
[398042891,1765333839854,-503.16939991,0.00015997,2]
[398042892,1765333839864,-500.0,0.00015997,2]
[398042893,1765333839873,-605.06,0.00015998,2]
[398042894,1765333839883,-500.0,0.00015998,2]
[398042895,1765333839893,-504.13571772,0.00015998,2]
[398042896,1765333839902,-836.06,0.00015998,2]
[398042897,1765333839911,-932.61,0.00015998,2]
[398042898,1765333839920,-500.0,0.00015998,2]
[398042899,1765333839930,-300.0,0.00015998,2]
[398042900,1765333839939,-500.0,0.00015998,2]
[398042901,1765333839949,-500.0,0.00015998,2]
[398042902,1765333839958,-500.0,0.00015998,2]
[398042903,1765333839968,-432.24333045,0.00015998,2]
[398042904,1765333839977,-969.67,0.00015998,2]
[398042905,1765333839986,-500.0,0.00015998,2]
[398042906,1765333839998,-507.45070118,0.00015998,2]
[398042907,1765333840008,-500.0,0.00015998,2]
[398042908,1765333840018,-344.59637553,0.00015998,2]
[398042909,1765333840028,-873.44,0.00015998,2]
[398042910,1765333840037,-500.0,0.00015998,2]
[398042911,1765333840048,-643.92403092,0.00015998,2]
[398042912,1765333840058,-500.0,0.00015998,2]
[398042913,1765333840068,-808.33,0.00015998,2]
[398042914,1765333840078,-500.0,0.00015998,2]
[398042915,1765333840088,-500.0,0.00015998,2]
[398042918,1765333840098,-500.0,0.00015998,2]
[398042919,1765333840108,-551.29,0.00015998,2]
[398042920,1765333840117,-500.0,0.00015998,2]
[398042921,1765333840126,-817.09,0.00015998,2]
[398042922,1765333840135,-500.0,0.00015998,2]
[398042923,1765333840144,-500.0,0.00015998,2]
[398042924,1765333840153,-500.0,0.00015998,2]
[398042925,1765333840162,-500.0,0.00015998,2]
[398042926,1765333840172,-702.74,0.00015998,2]
[398042927,1765333840181,-648.75,0.00015998,2]
[398042928,1765333840190,-500.0,0.00015998,2]
[398042929,1765333840199,-500.0,0.00015998,2]
[398042931,1765333840208,-687.0,0.00015998,2]
[398042932,1765333840217,-500.0,0.00015998,2]
[398042933,1765333840226,-500.0,0.00015998,2]
[398042934,1765333840235,-500.0,0.00015998,2]